[Event "Late-Titled-Tuesday-Blitz-March-19-2024"]
[Site "Chess.com"]
[Date "2024.03.19"]
[Round "7"]
[White "Goryachkina"]
[Black "VD_coach"]
[Result "1/2-1/2"]
[WhiteElo "2654"]
[BlackElo "2518"]
[TimeControl "180+1"]
[EndTime "15:16:24 PDT"]
[Termination "Game drawn by repetition"]

1. e4 {[%clk 0:02:59.7]} 1... c5 {[%clk 0:02:36.3]} 2. Nf3 {[%clk 0:02:58.4]}
2... d6 {[%clk 0:02:36]} 3. d4 {[%clk 0:02:58.3]} 3... cxd4 {[%clk 0:02:35.9]}
4. Nxd4 {[%clk 0:02:59.2]} 4... Nf6 {[%clk 0:02:35.7]} 5. Nc3 {[%clk 0:02:59.1]}
5... g6 {[%clk 0:02:36.1]} 6. Be2 {[%clk 0:02:58.3]} 6... Bg7 {[%clk 0:02:36.4]}
7. O-O {[%clk 0:02:58.3]} 7... O-O {[%clk 0:02:36.9]} 8. Be3 {[%clk 0:02:58.4]}
8... Nc6 {[%clk 0:02:37]} 9. f3 {[%clk 0:02:51.5]} 9... Bd7 {[%clk 0:02:14.6]}
10. Qd2 {[%clk 0:02:50.2]} 10... Rc8 {[%clk 0:02:14]} 11. Rfd1 {[%clk 0:02:48]}
11... Ne5 {[%clk 0:02:12.3]} 12. Kh1 {[%clk 0:02:28.8]} 12... Re8 {[%clk
0:01:55.3]} 13. Nd5 {[%clk 0:02:17.5]} 13... Nxd5 {[%clk 0:01:45.9]} 14. exd5
{[%clk 0:02:18.4]} 14... Nc4 {[%clk 0:01:41.8]} 15. Bxc4 {[%clk 0:02:17.9]}
15... Rxc4 {[%clk 0:01:42.7]} 16. b3 {[%clk 0:02:13.6]} 16... Rc8 {[%clk
0:01:41]} 17. c4 {[%clk 0:02:13.7]} 17... a6 {[%clk 0:01:39.4]} 18. a4 {[%clk
0:02:05]} 18... e5 {[%clk 0:01:27.3]} 19. dxe6 {[%clk 0:02:03]} 19... Bxe6
{[%clk 0:01:27.1]} 20. Nxe6 {[%clk 0:01:55.7]} 20... Rxe6 {[%clk 0:01:28]} 21.
Bd4 {[%clk 0:01:54.3]} 21... Bxd4 {[%clk 0:01:13.3]} 22. Qxd4 {[%clk 0:01:54.2]}
22... Qe7 {[%clk 0:01:10.4]} 23. h3 {[%clk 0:01:53.6]} 23... Rc5 {[%clk
0:01:09.9]} 24. Rd2 {[%clk 0:01:39]} 24... Rce5 {[%clk 0:01:05.3]} 25. Rad1
{[%clk 0:01:38]} 25... h5 {[%clk 0:01:00.7]} 26. Kh2 {[%clk 0:01:34.6]} 26...
Qf6 {[%clk 0:00:51.7]} 27. b4 {[%clk 0:01:23.8]} 27... h4 {[%clk 0:00:48.1]} 28.
c5 {[%clk 0:00:55.8]} 28... dxc5 {[%clk 0:00:46.1]} 29. bxc5 {[%clk 0:00:56]}
29... Qg5 {[%clk 0:00:39.7]} 30. Qd8+ {[%clk 0:00:41.3]} 30... Qxd8 {[%clk
0:00:39.5]} 31. Rxd8+ {[%clk 0:00:42.2]} 31... Kg7 {[%clk 0:00:39.9]} 32. R8d7
{[%clk 0:00:35.2]} 32... Rxc5 {[%clk 0:00:34.6]} 33. Rxb7 {[%clk 0:00:35.1]}
33... Re2 {[%clk 0:00:26.7]} 34. Rdd7 {[%clk 0:00:33.5]} 34... Rg5 {[%clk
0:00:20]} 35. Rxf7+ {[%clk 0:00:32.3]} 35... Kg8 {[%clk 0:00:20.4]} 36. Kg1
{[%clk 0:00:20.9]} 36... Rgxg2+ {[%clk 0:00:17.4]} 37. Kf1 {[%clk 0:00:21.2]}
37... Rgf2+ {[%clk 0:00:16.5]} 38. Kg1 {[%clk 0:00:21.4]} 38... Rg2+ {[%clk
0:00:16.1]} 39. Kf1 {[%clk 0:00:21.9]} 39... Ref2+ {[%clk 0:00:16.4]} 40. Ke1
{[%clk 0:00:21.6]} 40... Ra2 {[%clk 0:00:15.8]} 41. Kf1 {[%clk 0:00:18.9]} 41...
Rgc2 {[%clk 0:00:12.3]} 42. Rg7+ {[%clk 0:00:17.3]} 42... Kf8 {[%clk 0:00:12.6]}
43. Rbf7+ {[%clk 0:00:16.9]} 43... Ke8 {[%clk 0:00:13]} 44. Re7+ {[%clk
0:00:17.3]} 44... Kf8 {[%clk 0:00:12.4]} 45. Rgf7+ {[%clk 0:00:17.2]} 45... Kg8
{[%clk 0:00:12.7]} 46. Rg7+ {[%clk 0:00:18]} 46... Kf8 {[%clk 0:00:13.2]} 47.
Rgf7+ {[%clk 0:00:18.6]} 47... Kg8 {[%clk 0:00:13.5]} 48. Rg7+ {[%clk
0:00:19.1]} 48... Kf8 {[%clk 0:00:13.9]} 1/2-1/2

[Event "Late-Titled-Tuesday-Blitz-March-19-2024"]
[Site "Chess.com"]
[Date "2024.03.19"]
[Round "7"]
[White "dennisodessa"]
[Black "Adar_07"]
[Result "0-1"]
[WhiteElo "2525"]
[BlackElo "2826"]
[TimeControl "180+1"]
[EndTime "15:16:25 PDT"]
[Termination "Adar_07 won by resignation"]

1. d4 {[%clk 0:03:00]} 1... Nf6 {[%clk 0:02:59]} 2. c4 {[%clk 0:02:59.5]} 2...
c5 {[%clk 0:02:59.3]} 3. d5 {[%clk 0:02:59.3]} 3... e6 {[%clk 0:02:59.9]} 4. Nc3
{[%clk 0:02:59.4]} 4... exd5 {[%clk 0:03:00.2]} 5. cxd5 {[%clk 0:03:00.3]} 5...
g6 {[%clk 0:03:00.9]} 6. e4 {[%clk 0:03:00.8]} 6... Bg7 {[%clk 0:03:01.8]} 7.
Nf3 {[%clk 0:02:58]} 7... O-O {[%clk 0:03:01.7]} 8. Bd3 {[%clk 0:02:56.9]} 8...
d6 {[%clk 0:02:57.9]} 9. h3 {[%clk 0:02:56.8]} 9... b5 {[%clk 0:02:55.5]} 10.
Bxb5 {[%clk 0:02:57]} 10... Nxe4 {[%clk 0:02:54.9]} 11. Nxe4 {[%clk 0:02:57.9]}
11... Qa5+ {[%clk 0:02:54.8]} 12. Nfd2 {[%clk 0:02:58.6]} 12... Qxb5 {[%clk
0:02:52.3]} 13. Nxd6 {[%clk 0:02:59.5]} 13... Qd3 {[%clk 0:01:40.3]} 14. N2c4
{[%clk 0:02:51.1]} 14... Qxd1+ {[%clk 0:01:40.3]} 15. Kxd1 {[%clk 0:02:52]}
15... Ba6 {[%clk 0:01:41.2]} 16. Be3 {[%clk 0:02:41.4]} 16... Nd7 {[%clk
0:01:40.2]} 17. Rc1 {[%clk 0:02:04.3]} 17... Rfd8 {[%clk 0:01:16.4]} 18. Kc2
{[%clk 0:01:44.8]} 18... Nb6 {[%clk 0:00:57]} 19. b3 {[%clk 0:01:44.9]} 19...
Nxd5 {[%clk 0:00:25.4]} 20. Bxc5 {[%clk 0:01:39.7]} 20... Rd7 {[%clk 0:00:09.1]}
21. Rhd1 {[%clk 0:01:33.5]} 21... Nf4 {[%clk 0:00:08.7]} 22. Ne4 {[%clk
0:00:41.9]} 22... Rc7 {[%clk 0:00:06.8]} 23. Bd6 {[%clk 0:00:36.3]} 23... Rxc4+
{[%clk 0:00:05.7]} 24. bxc4 {[%clk 0:00:36]} 24... Nxg2 {[%clk 0:00:06.4]} 25.
Kd2 {[%clk 0:00:20.5]} 25... Nh4 {[%clk 0:00:05.6]} 26. Nc5 {[%clk 0:00:20.5]}
26... Bc8 {[%clk 0:00:04.7]} 27. Ke3 {[%clk 0:00:17.6]} 27... Bxh3 {[%clk
0:00:03.2]} 28. Bc7 {[%clk 0:00:17.5]} 28... Bg4 {[%clk 0:00:02.8]} 29. Rd8+
{[%clk 0:00:16.5]} 29... Rxd8 {[%clk 0:00:02.4]} 30. Bxd8 {[%clk 0:00:17.4]}
30... Bh6+ {[%clk 0:00:02.4]} 31. f4 {[%clk 0:00:17]} 31... Ng2+ {[%clk
0:00:03]} 32. Kf2 {[%clk 0:00:16.9]} 32... Nxf4 {[%clk 0:00:03.5]} 33. Rb1
{[%clk 0:00:15.7]} 33... Bf5 {[%clk 0:00:02.7]} 34. Rb8 {[%clk 0:00:14.5]} 34...
Kg7 {[%clk 0:00:02.5]} 35. Be7 {[%clk 0:00:08.5]} 35... Nh3+ {[%clk 0:00:02.4]}
36. Kg3 {[%clk 0:00:08.2]} 36... Bf4+ {[%clk 0:00:03.1]} 37. Kf3 {[%clk
0:00:08.5]} 37... Bxb8 {[%clk 0:00:04]} 0-1

[Event "Late-Titled-Tuesday-Blitz-March-19-2024"]
[Site "Chess.com"]
[Date "2024.03.19"]
[Round "7"]
[White "Kimkibo"]
[Black "Truequitos"]
[Result "0-1"]
[WhiteElo "2294"]
[BlackElo "2558"]
[TimeControl "180+1"]
[EndTime "15:16:25 PDT"]
[Termination "Truequitos won by checkmate"]

1. d4 {[%clk 0:03:00]} 1... d5 {[%clk 0:02:57.6]} 2. Nf3 {[%clk 0:02:59.3]} 2...
Nf6 {[%clk 0:02:56.9]} 3. Bf4 {[%clk 0:02:59.3]} 3... c5 {[%clk 0:02:56.2]} 4.
e3 {[%clk 0:02:58.8]} 4... Nc6 {[%clk 0:02:56.7]} 5. Nbd2 {[%clk 0:02:58.6]}
5... cxd4 {[%clk 0:02:55.2]} 6. exd4 {[%clk 0:02:58]} 6... Bg4 {[%clk
0:02:52.7]} 7. c3 {[%clk 0:02:50.9]} 7... e6 {[%clk 0:02:52.9]} 8. Bb5 {[%clk
0:02:49.5]} 8... Bd6 {[%clk 0:02:52.5]} 9. Bxc6+ {[%clk 0:02:35.5]} 9... bxc6
{[%clk 0:02:51.9]} 10. Bxd6 {[%clk 0:02:36.4]} 10... Qxd6 {[%clk 0:02:51.3]} 11.
b4 {[%clk 0:02:36.9]} 11... Ne4 {[%clk 0:02:47.5]} 12. Qc2 {[%clk 0:02:34.7]}
12... Bf5 {[%clk 0:02:42.5]} 13. Qa4 {[%clk 0:02:31]} 13... Nxc3 {[%clk
0:02:38.8]} 14. Qb3 {[%clk 0:02:28.7]} 14... Ne4 {[%clk 0:02:31.4]} 15. Nxe4
{[%clk 0:02:24.9]} 15... dxe4 {[%clk 0:02:19.9]} 16. Nd2 {[%clk 0:02:16.6]}
16... Qxd4 {[%clk 0:02:18]} 17. Rd1 {[%clk 0:02:09.1]} 17... Bg4 {[%clk
0:02:14.6]} 18. Rc1 {[%clk 0:01:53.7]} 18... Rd8 {[%clk 0:02:13.1]} 19. Qc3
{[%clk 0:01:54]} 19... O-O {[%clk 0:02:04]} 20. h3 {[%clk 0:01:41.1]} 20... Bh5
{[%clk 0:01:57.4]} 21. g4 {[%clk 0:01:40.6]} 21... Bg6 {[%clk 0:01:57.7]} 22.
Nb3 {[%clk 0:01:37.6]} 22... Qd5 {[%clk 0:01:35.3]} 23. Qxc6 {[%clk 0:01:32.2]}
23... Qg5 {[%clk 0:01:11.9]} 24. Rc3 {[%clk 0:01:14.1]} 24... h5 {[%clk
0:01:00.9]} 25. Rg3 {[%clk 0:01:08]} 25... Rc8 {[%clk 0:00:56.8]} 26. Qa4 {[%clk
0:00:39]} 26... h4 {[%clk 0:00:31.3]} 27. Re3 {[%clk 0:00:37.1]} 27... Qd5
{[%clk 0:00:28.3]} 28. O-O {[%clk 0:00:36]} 28... f5 {[%clk 0:00:28.6]} 29. Qa5
{[%clk 0:00:32.2]} 29... f4 {[%clk 0:00:26.3]} 30. Ree1 {[%clk 0:00:27.3]} 30...
Qd3 {[%clk 0:00:20.3]} 31. Kh2 {[%clk 0:00:20.3]} 31... Qf3 {[%clk 0:00:17.8]}
32. Nd4 {[%clk 0:00:16.8]} 32... Qd3 {[%clk 0:00:16.7]} 33. Nxe6 {[%clk
0:00:15.4]} 33... Rf6 {[%clk 0:00:16.9]} 34. Nc5 {[%clk 0:00:08.7]} 34... Qd6
{[%clk 0:00:15.9]} 35. f3 {[%clk 0:00:07]} 35... exf3 {[%clk 0:00:14.6]} 36.
Rxf3 {[%clk 0:00:07.8]} 36... Qd2+ {[%clk 0:00:13.8]} 37. Kg1 {[%clk 0:00:03]}
37... Qxe1+ {[%clk 0:00:13.4]} 38. Kg2 {[%clk 0:00:03.8]} 38... Qe2+ {[%clk
0:00:12.4]} 39. Rf2 {[%clk 0:00:04.2]} 39... f3+ {[%clk 0:00:12.4]} 40. Kg1
{[%clk 0:00:04.6]} 40... Qe1+ {[%clk 0:00:12.6]} 41. Rf1 {[%clk 0:00:04.8]}
41... Qg3+ {[%clk 0:00:13.2]} 42. Kh1 {[%clk 0:00:04.4]} 42... Qg2# {[%clk
0:00:13.9]} 0-1

[Event "Late-Titled-Tuesday-Blitz-March-19-2024"]
[Site "Chess.com"]
[Date "2024.03.19"]
[Round "7"]
[White "AccioChess"]
[Black "Zq1"]
[Result "0-1"]
[WhiteElo "2488"]
[BlackElo "2630"]
[TimeControl "180+1"]
[EndTime "15:16:26 PDT"]
[Termination "Zq1 won on time"]

1. e4 {[%clk 0:03:00.9]} 1... c5 {[%clk 0:02:58.9]} 2. Nf3 {[%clk 0:02:58.4]}
2... d6 {[%clk 0:02:58.4]} 3. d4 {[%clk 0:02:58.6]} 3... cxd4 {[%clk 0:02:58.4]}
4. Nxd4 {[%clk 0:02:59.5]} 4... Nf6 {[%clk 0:02:57.8]} 5. Nc3 {[%clk 0:03:00.4]}
5... Nc6 {[%clk 0:02:57.6]} 6. Bg5 {[%clk 0:03:00.1]} 6... e6 {[%clk 0:02:57.7]}
7. f4 {[%clk 0:03:00.5]} 7... Be7 {[%clk 0:02:56.8]} 8. Qd2 {[%clk 0:02:59.3]}
8... O-O {[%clk 0:02:51]} 9. O-O-O {[%clk 0:02:57.6]} 9... h6 {[%clk 0:02:49.1]}
10. Bxf6 {[%clk 0:02:47.4]} 10... Bxf6 {[%clk 0:02:48.4]} 11. Nxc6 {[%clk
0:02:45]} 11... bxc6 {[%clk 0:02:48.3]} 12. Bc4 {[%clk 0:01:51.8]} 12... d5
{[%clk 0:02:46.5]} 13. Bb3 {[%clk 0:01:48.2]} 13... a5 {[%clk 0:02:38.2]} 14. e5
{[%clk 0:01:45.8]} 14... Be7 {[%clk 0:02:36.7]} 15. Na4 {[%clk 0:01:43.7]} 15...
Ba6 {[%clk 0:02:22.6]} 16. h4 {[%clk 0:01:41.5]} 16... c5 {[%clk 0:02:19.3]} 17.
c3 {[%clk 0:01:29.6]} 17... Bb5 {[%clk 0:02:14.8]} 18. Qf2 {[%clk 0:01:05.7]}
18... Qc7 {[%clk 0:02:08.3]} 19. c4 {[%clk 0:01:00.3]} 19... dxc4 {[%clk
0:01:55.8]} 20. Bc2 {[%clk 0:01:00]} 20... Bxa4 {[%clk 0:01:47.1]} 21. Bxa4
{[%clk 0:01:00.9]} 21... Rfd8 {[%clk 0:01:46.5]} 22. g4 {[%clk 0:00:53]} 22...
Rxd1+ {[%clk 0:01:43.3]} 23. Rxd1 {[%clk 0:00:53.9]} 23... Rd8 {[%clk
0:01:42.3]} 24. g5 {[%clk 0:00:54.3]} 24... Rxd1+ {[%clk 0:01:41.3]} 25. Bxd1
{[%clk 0:00:55.2]} 25... hxg5 {[%clk 0:01:37.7]} 26. hxg5 {[%clk 0:00:56.1]}
26... g6 {[%clk 0:01:30.8]} 27. Qc2 {[%clk 0:00:52.4]} 27... c3 {[%clk
0:01:19.4]} 28. Qxc3 {[%clk 0:00:52.2]} 28... c4 {[%clk 0:01:17.5]} 29. Be2
{[%clk 0:00:52.1]} 29... Qb6 {[%clk 0:01:09.8]} 30. Qxc4 {[%clk 0:00:43]} 30...
Qe3+ {[%clk 0:00:53.9]} 31. Kc2 {[%clk 0:00:37.4]} 31... Bb4 {[%clk 0:00:51]}
32. a3 {[%clk 0:00:35.2]} 32... Be1 {[%clk 0:00:47.2]} 33. f5 {[%clk 0:00:12]}
33... gxf5 {[%clk 0:00:43.1]} 34. g6 {[%clk 0:00:11.2]} 34... Qxe5 {[%clk
0:00:33.1]} 35. gxf7+ {[%clk 0:00:11.5]} 35... Kxf7 {[%clk 0:00:32.2]} 36. Bh5+
{[%clk 0:00:10.2]} 36... Kf6 {[%clk 0:00:25.2]} 37. Bf3 {[%clk 0:00:10.3]} 37...
Bf2 {[%clk 0:00:19.9]} 38. Qc8 {[%clk 0:00:09.9]} 38... Qc5+ {[%clk 0:00:19.7]}
39. Qxc5 {[%clk 0:00:09.4]} 39... Bxc5 {[%clk 0:00:20.1]} 40. b4 {[%clk
0:00:09.4]} 40... axb4 {[%clk 0:00:19.2]} 41. axb4 {[%clk 0:00:10.3]} 41... Bxb4
{[%clk 0:00:19.2]} 42. Kd3 {[%clk 0:00:09.9]} 42... e5 {[%clk 0:00:18.9]} 43.
Bc6 {[%clk 0:00:09.9]} 43... Bd6 {[%clk 0:00:18.6]} 44. Ke3 {[%clk 0:00:09.8]}
44... Bc5+ {[%clk 0:00:18.6]} 45. Kf3 {[%clk 0:00:10]} 45... Bd4 {[%clk
0:00:18.6]} 46. Ke2 {[%clk 0:00:07.5]} 46... e4 {[%clk 0:00:18.1]} 47. Bb7
{[%clk 0:00:03.6]} 47... Ke5 {[%clk 0:00:18]} 48. Ba6 {[%clk 0:00:01.5]} 48...
f4 {[%clk 0:00:17.9]} 49. Kf1 {[%clk 0:00:01.5]} 49... f3 {[%clk 0:00:17.9]} 0-1

[Event "Late-Titled-Tuesday-Blitz-March-19-2024"]
[Site "Chess.com"]
[Date "2024.03.19"]
[Round "7"]
[White "manitodeplomo"]
[Black "Kampkatten"]
[Result "0-1"]
[WhiteElo "2661"]
[BlackElo "2848"]
[TimeControl "180+1"]
[EndTime "15:16:27 PDT"]
[Termination "Kampkatten won on time"]

1. d4 {[%clk 0:02:53.9]} 1... d5 {[%clk 0:02:53.3]} 2. c4 {[%clk 0:02:53]} 2...
c6 {[%clk 0:02:53.8]} 3. Nf3 {[%clk 0:02:53.4]} 3... Nf6 {[%clk 0:02:54]} 4. Nc3
{[%clk 0:02:53.7]} 4... e6 {[%clk 0:02:54.4]} 5. Bg5 {[%clk 0:02:53.6]} 5...
Nbd7 {[%clk 0:02:54.5]} 6. e3 {[%clk 0:02:53.4]} 6... Qa5 {[%clk 0:02:53.7]} 7.
Nd2 {[%clk 0:02:53.5]} 7... Bb4 {[%clk 0:02:52.5]} 8. Qc2 {[%clk 0:02:53.8]}
8... dxc4 {[%clk 0:02:43.3]} 9. Bxf6 {[%clk 0:02:52.9]} 9... Nxf6 {[%clk
0:02:44.2]} 10. Nxc4 {[%clk 0:02:53.3]} 10... Qc7 {[%clk 0:02:43.9]} 11. a3
{[%clk 0:02:50.9]} 11... Be7 {[%clk 0:02:43.8]} 12. Be2 {[%clk 0:02:48.9]} 12...
O-O {[%clk 0:02:39.9]} 13. O-O {[%clk 0:02:48.5]} 13... c5 {[%clk 0:02:39.6]}
14. dxc5 {[%clk 0:02:48.2]} 14... Bxc5 {[%clk 0:02:40.5]} 15. b4 {[%clk
0:02:48.4]} 15... Be7 {[%clk 0:02:40.1]} 16. Rac1 {[%clk 0:02:45.2]} 16... Bd7
{[%clk 0:02:38.1]} 17. Qb3 {[%clk 0:02:41.8]} 17... Rac8 {[%clk 0:02:35]} 18. b5
{[%clk 0:02:20.8]} 18... Nd5 {[%clk 0:02:15.1]} 19. a4 {[%clk 0:02:11.2]} 19...
Rfd8 {[%clk 0:01:56.2]} 20. Ne4 {[%clk 0:01:51.8]} 20... Be8 {[%clk 0:01:35.3]}
21. g3 {[%clk 0:01:44.5]} 21... a6 {[%clk 0:01:25.5]} 22. b6 {[%clk 0:01:23.3]}
22... Qc6 {[%clk 0:01:11]} 23. a5 {[%clk 0:01:16.5]} 23... Qb5 {[%clk
0:01:05.8]} 24. Qa2 {[%clk 0:00:52.3]} 24... Nb4 {[%clk 0:01:00.2]} 25. Qb1
{[%clk 0:00:50.5]} 25... Bc6 {[%clk 0:00:51.2]} 26. Rfd1 {[%clk 0:00:27.4]}
26... Rxd1+ {[%clk 0:00:24.7]} 27. Rxd1 {[%clk 0:00:24.8]} 27... Rf8 {[%clk
0:00:22.1]} 28. Bf1 {[%clk 0:00:22.7]} 28... Bd5 {[%clk 0:00:17.7]} 29. Nc3
{[%clk 0:00:20.7]} 29... Qc5 {[%clk 0:00:15]} 30. Nxd5 {[%clk 0:00:18.6]} 30...
exd5 {[%clk 0:00:15.9]} 31. Ne5 {[%clk 0:00:16.9]} 31... Qxa5 {[%clk 0:00:16.5]}
32. Qf5 {[%clk 0:00:13.9]} 32... Qa4 {[%clk 0:00:09.4]} 33. Rd4 {[%clk
0:00:12.8]} 33... g6 {[%clk 0:00:09.4]} 34. Qd7 {[%clk 0:00:12.4]} 34... Qxd7
{[%clk 0:00:08.8]} 35. Nxd7 {[%clk 0:00:13.3]} 35... Rd8 {[%clk 0:00:08.9]} 36.
Ne5 {[%clk 0:00:12.5]} 36... Bc5 {[%clk 0:00:09]} 37. Rd2 {[%clk 0:00:11.8]}
37... Bxb6 {[%clk 0:00:09]} 38. Bg2 {[%clk 0:00:09.9]} 38... a5 {[%clk 0:00:09]}
39. Kf1 {[%clk 0:00:06.5]} 39... f6 {[%clk 0:00:09.1]} 40. Nf3 {[%clk
0:00:06.3]} 40... Kf7 {[%clk 0:00:09]} 41. Rb2 {[%clk 0:00:02.2]} 41... Bc5
{[%clk 0:00:08.8]} 0-1

[Event "Late-Titled-Tuesday-Blitz-March-19-2024"]
[Site "Chess.com"]
[Date "2024.03.19"]
[Round "7"]
[White "Cluke86"]
[Black "Cambek64"]
[Result "1/2-1/2"]
[WhiteElo "2327"]
[BlackElo "2483"]
[TimeControl "180+1"]
[EndTime "15:16:27 PDT"]
[Termination "Game drawn by repetition"]

1. e4 {[%clk 0:03:00.9]} 1... c5 {[%clk 0:03:00.9]} 2. Nc3 {[%clk 0:02:59.9]}
2... Nc6 {[%clk 0:02:56]} 3. f4 {[%clk 0:02:59.2]} 3... e6 {[%clk 0:02:49.4]} 4.
Nf3 {[%clk 0:02:58.2]} 4... a6 {[%clk 0:02:48.4]} 5. g3 {[%clk 0:02:51.5]} 5...
b5 {[%clk 0:02:48.4]} 6. Bg2 {[%clk 0:02:51.4]} 6... Bb7 {[%clk 0:02:48.9]} 7.
O-O {[%clk 0:02:50.8]} 7... d5 {[%clk 0:02:47.1]} 8. exd5 {[%clk 0:02:47.8]}
8... exd5 {[%clk 0:02:46.3]} 9. Re1+ {[%clk 0:02:47.6]} 9... Be7 {[%clk
0:02:46.3]} 10. d4 {[%clk 0:02:46.9]} 10... c4 {[%clk 0:02:43.8]} 11. Ne5 {[%clk
0:02:41.7]} 11... Nf6 {[%clk 0:02:44.4]} 12. Ne2 {[%clk 0:02:15.1]} 12... O-O
{[%clk 0:02:41.2]} 13. c3 {[%clk 0:02:15]} 13... Ne4 {[%clk 0:02:38.8]} 14. Bxe4
{[%clk 0:02:08.8]} 14... dxe4 {[%clk 0:02:36.9]} 15. Be3 {[%clk 0:02:04.5]}
15... f6 {[%clk 0:02:34.1]} 16. Ng4 {[%clk 0:01:58.4]} 16... Qd7 {[%clk
0:02:33.6]} 17. Nf2 {[%clk 0:01:52.2]} 17... Nd8 {[%clk 0:02:25.3]} 18. a4
{[%clk 0:01:48.4]} 18... f5 {[%clk 0:02:20.5]} 19. b3 {[%clk 0:01:45.1]} 19...
Bd5 {[%clk 0:02:18.7]} 20. b4 {[%clk 0:01:38.4]} 20... Nc6 {[%clk 0:02:13.8]}
21. a5 {[%clk 0:01:37.2]} 21... g6 {[%clk 0:02:07.8]} 22. Qc2 {[%clk 0:01:34.7]}
22... Kf7 {[%clk 0:02:06.4]} 23. Nd1 {[%clk 0:01:34.2]} 23... Rh8 {[%clk
0:02:06.3]} 24. Bf2 {[%clk 0:01:29.5]} 24... Rag8 {[%clk 0:02:06.7]} 25. h4
{[%clk 0:01:27.2]} 25... Bf6 {[%clk 0:02:05.1]} 26. Ne3 {[%clk 0:01:26.5]} 26...
Ne7 {[%clk 0:02:05.6]} 27. Kf1 {[%clk 0:01:24.4]} 27... Ke8 {[%clk 0:02:06]} 28.
Ng1 {[%clk 0:01:24.2]} 28... h6 {[%clk 0:02:06.3]} 29. Nh3 {[%clk 0:01:24]}
29... g5 {[%clk 0:02:04.4]} 30. fxg5 {[%clk 0:01:12.6]} 30... hxg5 {[%clk
0:02:04.5]} 31. Nxg5 {[%clk 0:01:11.6]} 31... Bxg5 {[%clk 0:02:05]} 32. hxg5
{[%clk 0:01:11.9]} 32... Rxg5 {[%clk 0:02:04.8]} 33. Ke2 {[%clk 0:01:11.4]}
33... Kd8 {[%clk 0:01:57.9]} 34. Rh1 {[%clk 0:01:10.6]} 34... Rgh5 {[%clk
0:01:56.9]} 35. Rxh5 {[%clk 0:01:08.1]} 35... Rxh5 {[%clk 0:01:57.4]} 36. Rg1
{[%clk 0:01:02.7]} 36... Qe6 {[%clk 0:01:51.7]} 37. Qd1 {[%clk 0:01:02.5]} 37...
Rh2 {[%clk 0:01:46.3]} 38. Rh1 {[%clk 0:01:00.1]} 38... Qh6 {[%clk 0:01:46.1]}
39. Rxh2 {[%clk 0:01:00]} 39... Qxh2 {[%clk 0:01:46.6]} 40. Qg1 {[%clk
0:01:00.2]} 40... Qxg1 {[%clk 0:01:46.2]} 41. Bxg1 {[%clk 0:01:01.1]} 41... Ke8
{[%clk 0:01:45.7]} 42. Ng2 {[%clk 0:00:57.8]} 42... Bf7 {[%clk 0:01:34.4]} 43.
Be3 {[%clk 0:00:56.1]} 43... Bh5+ {[%clk 0:01:32.8]} 44. Kf2 {[%clk 0:00:54.9]}
44... Kf7 {[%clk 0:01:24.7]} 45. Bg5 {[%clk 0:00:49.3]} 45... Nd5 {[%clk
0:01:22.6]} 46. Bd2 {[%clk 0:00:47]} 46... Bg4 {[%clk 0:01:16.2]} 47. Ne3 {[%clk
0:00:45]} 47... Nf6 {[%clk 0:01:11.6]} 48. Ng2 {[%clk 0:00:38.4]} 48... Bf3
{[%clk 0:01:08.3]} 49. Nf4 {[%clk 0:00:35.1]} 49... Ng4+ {[%clk 0:01:08.6]} 50.
Kg1 {[%clk 0:00:30.3]} 50... e3 {[%clk 0:01:08.7]} 51. Bxe3 {[%clk 0:00:22.9]}
51... Nxe3 {[%clk 0:01:07.6]} 52. Kf2 {[%clk 0:00:23.4]} 52... Nd1+ {[%clk
0:01:08.1]} 53. Kxf3 {[%clk 0:00:23.4]} 53... Nxc3 {[%clk 0:01:08.5]} 54. Ke3
{[%clk 0:00:22]} 54... Na2 {[%clk 0:01:08.3]} 55. Nd5 {[%clk 0:00:21.2]} 55...
Ke6 {[%clk 0:01:00.7]} 56. Nc7+ {[%clk 0:00:21.3]} 56... Kd6 {[%clk 0:01:01.3]}
57. Nxa6 {[%clk 0:00:21.9]} 57... Kc6 {[%clk 0:01:00.1]} 58. Kd2 {[%clk
0:00:19.3]} 58... Kb7 {[%clk 0:00:53.8]} 59. Nc5+ {[%clk 0:00:18.2]} 59... Kc6
{[%clk 0:00:54.4]} 60. Na6 {[%clk 0:00:14.9]} 60... Kb7 {[%clk 0:00:51.3]} 61.
Nc5+ {[%clk 0:00:14.7]} 61... Kc6 {[%clk 0:00:51.6]} 62. Na6 {[%clk 0:00:14.5]}
1/2-1/2